[Event "46th Barbera del Valles Open-A 2024"]
[Site "Barbera del Valles"]
[Date "2024.07.07"]
[Round "4.6"]
[White "Rudzinska, Michalina"]
[Black "Berdayes Ason, Dylan Isidro"]
[Result "1/2-1/2"]
[ECO "B48"]
[WhiteElo "2290"]
[BlackElo "2519"]
[Annotator "TA"]
[PlyCount "80"]
[EventDate "2024.06.25"]
[EventType "swiss"]
[EventCountry "ESP"]
[SourceTitle "playchess.com"]
[Source "ChessBase"]
[SourceQuality "1"]
[TimeControl "5400+30"]

{[%evp 11,80,31,39,18,43,18,34,45,39,30,39,2,19,11,15,15,16,25,16,28,14,20,9,20,23,16,12,2,31,0,0,0,13,22,58,53,59,19,50,0,0,0,0,0,0,0,0,0,0,0,0,0,0,12,20,0,0,0,0,0,0,0,0,0,0,0,0,0,0,0,0]} 1. e4 {[%emt 0:00:04]} c5 {[%emt 0:00:03]} 2. Nf3 {[%emt 0:00:11]} e6 {[%emt 0:00:02]} 3. d4 {[%emt 0:00:09]} cxd4 {[%emt 0:00:02]} 4. Nxd4 {[%emt 0:00:07]} Nc6 {[%emt 0:00:04]} 5. Nc3 {[%emt 0:00:08]} Qc7 {[%emt 0:00:02]} 6. Be3 {[%emt 0:00:30]} a6 {[%emt 0:00:03]} 7. Qf3 {[%emt 0:00:23]} b5 {[%emt 0:00:03]} 8. Qg3 {[%emt 0:00:56]} Qxg3 {[%emt 0:00:07]} 9. hxg3 {[%emt 0:00:07] White is slightly better.} Bb7 {[%emt 0:00:04]} 10. f3 {[%emt 0:01:57]} Bc5 {[%emt 0:03:13]} 11. O-O-O {[%emt 0:12:04][%cal Od4f5]} Ba7 {[%emt 0:02:08]} 12. Bg1 {[%emt 0:04:44]} Nge7 {[%emt 0:11:46]} 13. Nb3 {[%emt 0:02:59]} Bxg1 {[%emt 0:00:56]} 14. Rxg1 {[%emt 0:00:04]} O-O-O {[%emt 0:00:55]} 15. a4 {[%emt 0:12:14]} b4 {[%emt 0:01:52]} 16. Nb1 {[%emt 0:00:54][%cal Bc3b1,Bb1d2,Bd2c4,Bc4e3][%mdl 32]} d6 {[%emt 0:03:03]} 17. N1d2 {[%emt 0:03:12]} Kc7 {[%emt 0:01:24]} 18. Be2 {[%emt 0:00:55]} h5 {[%emt 0:10:47]} 19. Nc4 {[%emt 0:05:55]} f5 {[%emt 0:17:48]} 20. Ne3 {[%emt 0:07:51]} fxe4 {[%emt 0:17:00]} 21. fxe4 {[%emt 0:00:09]} h4 {[%emt 0:04:00]} 22. Rgf1 {[%emt 0:12:08]} Ne5 {[%emt 0:04:15] Against Rf7} 23. Nd4 {[%emt 0:01:11]} Bc8 {[%emt 0:02:52]} 24. Nf3 {[%emt 0:06:46]} (24. gxh4 Rxh4 25. g4 N7c6 $11) 24... N7g6 {[%emt 0:07:24]} 25. Nxe5 {[%emt 0:10:20]} (25. gxh4 $14 Nxf3 26. Bxf3 (26. Rxf3 Rxh4 27. Rd4 Ne5 $14) 26... Rxh4 27. Ng4) 25... Nxe5 $11 {[%emt 0:00:05] The position is equal.} 26. Nc4 {[%emt 0:01:23]} Nxc4 {[%emt 0:01:52]} ({Much weaker is} 26... hxg3 $6 27. Nxe5 dxe5 28. Rf7+ Rd7 29. Rdxd7+ Bxd7 30. Rxg7 $16) 27. Bxc4 {[%emt 0:00:06]} hxg3 {[%emt 0:04:08]} 28. Rd3 {[%emt 0:00:33]} Rh4 {[%emt 0:01:26]} 29. Rxg3 {[%emt 0:00:28]} Rxe4 {[%emt 0:00:04]} 30. Bd3 {[%emt 0:01:06]} Rh4 {[%emt 0:00:53]} 31. Rxg7+ {[%emt 0:00:31]} Kb6 {[%emt 0:01:15]} 32. g4 {[%emt 0:01:18]} e5 {[%emt 0:01:34]} 33. Bf5 {[%emt 0:13:01]} Rh2 {[%emt 0:00:01]} 34. Rd1 {[%emt 0:01:32]} Bxf5 {[%emt 0:01:06]} 35. gxf5 {[%emt 0:00:06][%mdl 4096] Endgame. KRR-KRR} Rf2 {[%emt 0:00:03]} 36. Rf7 {[%emt 0:00:31]} e4 {[%emt 0:01:51][%cal Ob4b3]} 37. Re7 {[%emt 0:01:03]} d5 {[%emt 0:03:56]} 38. Rxe4 {[%emt 0:00:18]} dxe4 {[%emt 0:00:02]} ({Of course not} 38... Rxf5 $6 39. Rxb4+ Ka7 40. b3 $16) 39. Rxd8 {[%emt 0:00:06]} e3 {[%emt 0:00:03] [#] And now ...Rf1+ would win.} 40. Kd1 {[%emt 0:00:15]} Rxf5 {[%emt 0:00:13] Weighted Error Value: White=0.10 (very precise) /Black=0.07 (flawless) .  Mistake:       	White=1     	---        Inaccurate:     	White=3     	Black=3      OK:         	White=13    	Black=17     Best:        	White=1     	---} 1/2-1/2

[Event "46th Barbera del Valles Open-A 2024"]
[Site "Barbera del Valles"]
[Date "2024.07.07"]
[Round "4.7"]
[White "Solodovnichenko, Yuri"]
[Black "Fernandez Climent, Albert"]
[Result "1-0"]
[ECO "C11"]
[WhiteElo "2481"]
[BlackElo "2102"]
[Annotator "TA"]
[PlyCount "95"]
[EventDate "2024.06.25"]
[EventType "swiss"]
[EventCountry "ESP"]
[SourceTitle "playchess.com"]
[Source "ChessBase"]
[SourceQuality "1"]
[TimeControl "5400+30"]

{[%evp 13,95,0,15,8,0,14,0,-83,47,53,53,25,85,99,191,194,242,247,263,72,60,66,221,236,318,328,320,327,320,257,381,374,362,334,384,360,362,373,371,374,398,394,410,383,452,467,448,370,486,470,461,443,449,422,388,411,394,396,491,484,543,537,541,539,520,540,619,600,582,543,722,712,684,675,29974,29975,29975,29976,29976,29976,29977,29978,29976,29977]} 1. e4 {[%emt 0:00:03]} e6 {[%emt 0:00:04]} 2. d4 {[%emt 0:00:04]} d5 {[%emt 0:00:03]} 3. Nc3 {[%emt 0:00:04]} Nf6 {[%emt 0:00:04]} 4. e5 {[%emt 0:00:20]} Nfd7 {[%emt 0:00:07]} 5. f4 {[%emt 0:00:05]} c5 {[%emt 0:00:05]} 6. Nf3 {[%emt 0:00:04]} Nc6 {[%emt 0:00:03]} 7. Be3 {[%emt 0:00:05]} Be7 {[%emt 0:00:04]} 8. a3 {[%emt 0:01:32]} b6 {[%emt 0:01:57]} 9. Qd2 {[%emt 0:24:54]} O-O {[%emt 0:04:54]} 10. O-O-O {[%emt 0:04:21] [#]} (10. g3 $11) 10... f6 {[%emt 0:04:31]} (10... c4 $1 $17 {[%cal Ob6b5]} 11. f5 b5) 11. dxc5 $14 {[%emt 0:08:18]} Nxc5 {[%emt 0:02:19]} 12. b4 {[%emt 0:05:20]} Kh8 {[%emt 0:33:31]} 13. exf6 {[%emt 0:04:19] White is more active.} Bxf6 {[%emt 0:13:37]} (13... Rxf6 $16 14. g4 (14. bxc5 bxc5 15. Bb5 Na5 $16) 14... Bb7) 14. bxc5 $18 {[%emt 0:00:42]} Qe7 {[%emt 0:00:14]} (14... Bd7 $142 15. Bb5 Ne7) 15. Bb5 {[%emt 0:05:06]} (15. cxb6 Qxa3+ 16. Kb1 axb6 (16... Qxc3 17. Qxc3 Bxc3 18. Rd3 $11) (16... Qxc3 17. Qxc3 Bxc3 18. Rd3 $11)) 15... Bd7 {[%emt 0:11:07]} 16. Bxc6 $2 {[%emt 0:00:25]} (16. cxb6 Qxa3+ 17. Kb1 axb6 (17... Qxc3 18. Qxc3 Bxc3 19. Rd3 $16) 18. Ba4 Rxa4 19. Nxa4 Qa1#) (16. Rhe1 $18 {is more deadly. Bf2 would now be deadly.} Be8 17. Bxc6 (17. cxb6 Qxa3+ 18. Kb1 axb6 19. Ba4 Rxa4 20. Nxa4 Qa1#) 17... Bxc6 18. Bd4 (18. cxb6 $2 Qxa3+ 19. Kb1 axb6 20. Bxb6 Qa1#) 18... bxc5 19. Bxf6 Qxf6 20. h3) 16... Bxc6 $16 {[%emt 0:00:04]} 17. Nd4 {[%emt 0:05:19]} (17. cxb6 $2 Qxa3+ 18. Kb1 axb6 19. Bxb6 Qa1#) 17... Bd7 {[%emt 0:05:57] This pair of bishops is nice. This move loses the game for Black.} ({Black should play} 17... Be8 $14) 18. Nb3 $18 {[%emt 0:01:57]} Rfc8 {[%emt 0:01:31] [#]} 19. Ne4 {[%emt 0:00:25][%mdl 512]} Ba4 {[%emt 0:03:38]} 20. Nxf6 {[%emt 0:00:13]} gxf6 {[%emt 0:00:15]} 21. f5 {[%emt 0:22:31] aiming for fxe6.} Bxb3 {[%emt 0:00:11]} (21... bxc5 $142 22. fxe6 d4) 22. cxb3 {[%emt 0:00:12]} bxc5 {[%emt 0:00:06]} 23. fxe6 {[%emt 0:00:29]} d4 {[%emt 0:00:19]} 24. Bf4 {[%emt 0:00:23]} Qxe6 {[%emt 0:00:43]} 25. Kb2 {[%emt 0:02:51]} a5 {[%emt 0:03:20][%cal Ba7a5,Ba5a4][%mdl 32]} 26. Rhe1 {[%emt 0:00:49]} Qf7 {[%emt 0:02:24]} 27. Qe2 {[%emt 0:04:01]} a4 {[%emt 0:01:49]} 28. Qc4 {[%emt 0:03:02]} Qg6 {[%emt 0:03:43]} 29. g3 {[%emt 0:00:06]} (29. bxa4 Qxg2+ 30. Bd2 Qxh2 $18) 29... axb3 {[%emt 0:00:09]} 30. Rd3 {[%emt 0:02:08]} (30. Kxb3 Qh5 31. Ka2 Qf3 $18) 30... Re8 {[%emt 0:05:03]} 31. Rxe8+ {[%emt 0:00:29]} Rxe8 {[%emt 0:00:04]} 32. Rxb3 {[%emt 0:00:11]} (32. Kxb3 Qf5 33. Rd2 h6 $18) 32... Qh5 {[%emt 0:00:03]} 33. Rb8 {[%emt 0:01:21]} Qxh2+ {[%emt 0:01:03]} 34. Qc2 {[%emt 0:00:12]} Rxb8+ {[%emt 0:04:28]} 35. Bxb8 {[%emt 0:00:05]} Qh5 {[%emt 0:00:00]} 36. Bd6 {[%emt 0:00:05]} Kg7 {[%emt 0:00:00]} 37. Qxc5 {[%emt 0:00:35]} ({Weaker is} 37. Bxc5 d3 38. Qf2 (38. Qxd3 Qxc5 39. Qd7+ Kg8 $11) (38. g4 Qd5 $11) 38... d2 $11) 37... Qe2+ {[%emt 0:00:10]} 38. Qc2 {[%emt 0:00:14]} Qb5+ {[%emt 0:00:06]} 39. Bb4 {[%emt 0:00:05]} h5 {[%emt 0:00:09]} 40. Qe4 {[%emt 0:00:52] Prevents Qb7.} Qc4 {[%emt 0:00:40]} 41. Qe7+ {[%emt 0:01:47]} Kg8 {[%emt 0:01:35]} 42. Qe8+ {[%emt 0:01:13]} Kh7 {[%emt 0:00:32]} 43. Qxh5+ {[%emt 0:00:07]} Kg8 {[%emt 0:00:05]} 44. Qg6+ {[%emt 0:00:08] White mates.} Kh8 {[%emt 0:00:40]} 45. Qxf6+ {[%emt 0:00:05]} Kg8 {[%emt 0:00:07]} 46. Qg6+ {[%emt 0:01:04]} Kh8 {[%emt 0:00:08]} 47. Qe4 {[%emt 0:00:23]} Kg8 {[%emt 0:00:53]} 48. g4 {[%emt 0:00:38] Weighted Error Value: White=0.21 (precise) /Black=0.52.  Missed win:     	White=1     	---        Mistake:       	White=1     	Black=6      Inaccurate:     	White=1     	Black=2      OK:         	White=16    	Black=9      Best:        	White=5     	---} 1-0

[Event "46th Barbera del Valles Open-A 2024"]
[Site "Barbera del Valles"]
[Date "2024.07.07"]
[Round "4.9"]
[White "Narciso Dublan, Marc"]
[Black "Kanakova, Natalie"]
[Result "1/2-1/2"]
[ECO "B25"]
[WhiteElo "2432"]
[BlackElo "2167"]
[Annotator "TA"]
[PlyCount "71"]
[EventDate "2024.06.25"]
[EventType "swiss"]
[EventCountry "ESP"]
[SourceTitle "playchess.com"]
[Source "ChessBase"]
[SourceQuality "1"]
[TimeControl "5400+30"]

{[%evp 18,71,33,39,52,59,49,38,71,48,58,49,46,22,15,30,15,0,0,0,0,0,0,0,0,0,20,20,6,1,25,24,26,20,26,14,12,12,13,13,31,8,14,12,24,0,0,0,0,0,0,0,7,0,0,0]} 1. e4 {[%emt 0:00:15]} c5 {[%emt 0:00:10]} 2. Nc3 {[%emt 0:00:29]} Nc6 {[%emt 0:00:30]} 3. g3 {[%emt 0:00:21]} g6 {[%emt 0:00:14]} 4. Bg2 {[%emt 0:00:09]} Bg7 {[%emt 0:00:06]} 5. d3 {[%emt 0:00:20]} d6 {[%emt 0:01:52]} 6. Nf3 {[%emt 0:01:07][%cal Bg1f3,Bf3d2,Bd2c4][%mdl 32]} e5 {[%emt 0:07:44]} 7. Nd2 {[%emt 0:00:25]} Nge7 {[%emt 0:02:07]} 8. Nc4 {[%emt 0:00:10]} Nd4 {[%emt 0:03:22]} 9. a4 {[%emt 0:06:22]} O-O {[%emt 0:02:16]} 10. O-O {[%emt 0:02:45]} Be6 {[%emt 0:02:15]} 11. Nd5 {[%emt 0:01:15]} Rb8 {[%emt 0:03:34]} 12. f4 {[%emt 0:13:43]} f5 {[%emt 0:15:30] White is slightly better.} 13. fxe5 {[%emt 0:05:25] White is more active.} dxe5 {[%emt 0:01:25][%cal Re7d5]} 14. Bg5 {[%emt 0:03:22]} Ndc6 {[%emt 0:00:17]} 15. Qd2 {[%emt 0:04:01]} Qd7 {[%emt 0:01:47][%cal Re7d5]} 16. Nxe7+ {[%emt 0:00:51]} Nxe7 {[%emt 0:00:04]} 17. Qa5 {[%emt 0:08:52]} b6 {[%emt 0:03:09]} 18. Qb5 {[%emt 0:01:02] [#] aiming for Qxd7.} Qc7 {[%emt 0:00:56]} 19. Bxe7 {[%emt 0:09:10]} Qxe7 {[%emt 0:00:06]} 20. exf5 {[%emt 0:01:13]} gxf5 {[%emt 0:01:08]} 21. Rae1 {[%emt 0:02:51]} Bxc4 {[%emt 0:02:41]} 22. Qxc4+ {[%emt 0:00:15]} Kh8 {[%emt 0:00:19] Black is weak on the light squares} 23. g4 {[%emt 0:08:17]} Qd7 {[%emt 0:07:00]} 24. gxf5 {[%emt 0:05:06]} Rxf5 {[%emt 0:00:25]} 25. Qe4 {[%emt 0:12:51]} Rbf8 {[%emt 0:04:28]} 26. Rxf5 {[%emt 0:00:38]} Qxf5 {[%emt 0:00:06]} 27. Qxf5 {[%emt 0:00:33]} (27. Rf1 {looks sharper.} Qg5 28. Rxf8+ Bxf8 29. Kf2) 27... Rxf5 $11 {[%emt 0:00:04][%mdl 4096] Endgame. KRB-KRB} 28. Be4 {[%emt 0:00:37]} Rf6 {[%emt 0:08:21]} 29. a5 {[%emt 0:02:40]} bxa5 {[%emt 0:01:08]} 30. Ra1 {[%emt 0:04:40]} Ra6 {[%emt 0:00:51]} 31. Ra4 {[%emt 0:01:20][%mdl 1024] White has compensation.} Bf6 {[%emt 0:01:12] The position is equal.} 32. Kg2 {[%emt 0:01:38]} Bd8 {[%emt 0:02:19]} 33. Rc4 {[%emt 0:01:47]} Be7 {[%emt 0:01:17]} 34. Ra4 {[%emt 0:00:11]} Bd8 {[%emt 0:00:11]} 35. Rc4 {[%emt 0:01:33]} Be7 {[%emt 0:00:04]} 36. Ra4 {[%emt 0:00:20] Weighted Error Value: White=0.05 (flawless) /Black=0.07 (flawless) .  Inaccurate:     	---       	Black=1      OK:         	White=10    	Black=10     Best:        	---       	Black=2} 1/2-1/2

[Event "46th Barbera del Valles Open-A 2024"]
[Site "Barbera del Valles"]
[Date "2024.07.07"]
[Round "4.10"]
[White "Kaustuv, Kundu"]
[Black "Deodhar, Vrushali Umesh"]
[Result "1-0"]
[ECO "D94"]
[WhiteElo "2403"]
[BlackElo "2115"]
[Annotator "TA"]
[PlyCount "80"]
[EventDate "2024.06.25"]
[EventType "swiss"]
[EventCountry "ESP"]
[SourceTitle "playchess.com"]
[Source "ChessBase"]
[SourceQuality "1"]
[TimeControl "5400+30"]

{[%evp 22,80,26,29,30,32,29,37,38,28,37,28,29,33,26,25,35,31,30,29,38,37,29,25,31,0,0,0,20,12,20,0,42,9,31,42,85,91,84,78,47,34,89,79,71,0,0,0,51,53,50,57,48,50,492,167,372,364,902,885,29991]} 1. Nf3 {[%emt 0:01:01]} d5 {[%emt 0:00:28]} 2. e3 {[%emt 0:00:35]} c6 {[%emt 0:00:30]} 3. c4 {[%emt 0:00:10]} Nf6 {[%emt 0:00:08]} 4. Nc3 {[%emt 0:00:07]} g6 {[%emt 0:00:04]} 5. d4 {[%emt 0:00:12]} Bg7 {[%emt 0:00:02]} 6. Be2 {[%emt 0:00:08]} O-O {[%emt 0:00:07]} 7. O-O {[%emt 0:00:09]} Bg4 {[%emt 0:00:22]} 8. cxd5 {[%emt 0:00:08]} cxd5 {[%emt 0:00:02]} 9. Qb3 {[%emt 0:00:13]} b6 {[%emt 0:00:07]} 10. h3 {[%emt 0:00:41]} Bxf3 {[%emt 0:00:18]} 11. Bxf3 {[%emt 0:00:06]} e6 {[%emt 0:00:06]} 12. Bd2 {[%emt 0:00:38]} Nc6 {[%emt 0:00:06][%cal Bb8c6,Bc6a5,Ba5c4][%mdl 32]} 13. Rfc1 {[%emt 0:01:13][%cal Oc3d5] Strongly threatening Nxd5!} Na5 {[%emt 0:02:04]} 14. Qb4 {[%emt 0:04:16]} Nc4 {[%emt 0:11:38] White is slightly better.} 15. Be1 {[%emt 1:28:23]} Re8 {[%emt 0:11:44]} 16. b3 {[%emt 0:00:00]} Bf8 {[%emt 0:06:55]} 17. Qa4 {[%emt 0:00:00]} Nd6 {[%emt 0:01:49]} 18. Qa6 {[%emt 0:00:00]} Qd7 {[%emt 0:04:47]} 19. Rc2 {[%emt 0:00:00]} Rec8 {[%emt 0:02:32]} 20. Rac1 {[%emt 0:00:00]} Nfe8 {[%emt 0:01:35][%cal Bf6e8,Be8d6,Bd6c4][%mdl 32]} 21. Be2 {[%emt 0:00:00]} Rc7 {[%emt 0:07:27]} 22. Qa4 {[%emt 0:00:00]} Qxa4 {[%emt 0:06:05]} 23. bxa4 {[%emt 0:00:00]} a6 {[%emt 0:02:45]} 24. Rb1 {[%emt 0:00:00]} Nc8 {[%emt 0:09:47]} 25. f3 {[%emt 0:05:00]} Ned6 {[%emt 0:31:32]} 26. Bg3 {[%emt 0:00:30]} (26. Bd3 $5) 26... Rc6 {[%emt 0:00:00]} 27. Bd3 {[%emt 0:00:00]} (27. Bf4 $5) 27... Nc4 {[%emt 0:00:00] [#]} 28. Ne4 $1 {[%emt 0:00:00]} Na7 {[%emt 0:00:00]} (28... f5 29. Nf6+) 29. Nf6+ {[%emt 0:00:00]} Kg7 {[%emt 0:00:00]} 30. Nd7 {[%emt 0:00:00] Black must now prevent Bxc4. White has more active pieces.} b5 {[%emt 0:00:00]} 31. Nb8 {[%emt 0:00:00]} (31. axb5 {simplifies} axb5 32. Bxc4 Rxc4 33. Re2) 31... Rb6 {[%emt 0:00:00] [#]} (31... Rxb8 $14 32. Bxb8 Na3) 32. Bxc4 $1 $16 {[%emt 0:00:00]} dxc4 {[%emt 0:03:30] [#]} 33. Nxa6 {[%emt 0:03:30]} Rxa6 $11 {[%emt 0:00:00][%cal Bb6a6,Ba6a2,Ba2e2][%mdl 32]} 34. axb5 {[%emt 0:00:30]} Nxb5 {[%emt 0:01:00]} 35. Rxb5 $14 {[%emt 0:00:00]} Rxa2 {[%emt 0:00:30]} 36. Rxc4 {[%emt 0:00:00]} Re2 {[%emt 0:00:00][%cal Oa8a2]} 37. Be5+ {[%emt 0:00:00]} Kh6 $2 {[%emt 0:00:00][%mdl 8192] This costs Black the game.} (37... Kg8 $14) 38. d5 $2 {[%emt 0:02:00]} (38. Rc7 f6 39. Rbb7 (39. Bxf6 Ra1+ 40. Kh2 Bd6+ 41. Be5 Bxc7 $11)) 38... Be7 $2 (38... g5 {might work better.}) 39. dxe6 $18 {[%emt 0:00:00]} fxe6 {[%emt 0:00:00]} (39... f6) 40. Rc7 {[%emt 0:00:00]} Bg5 {[%emt 0:00:00] Weighted Error Value: White=0.16 (very precise) /Black=0.40.  Loses game:     	---       	Black=1      Mistake:       	White=2     	Black=4      Inaccurate:     	White=2     	Black=3      OK:         	White=14    	Black=15     Best:        	White=2     	---        Strong:       	White=1     	---} 1-0